bitfinex-derivatives/quotes_SOLF0:USTF0_20250514
["timestamp","ask_amount","ask_price","bid_price","bid_amount"]
[1747187278212,144.46,183.72,183.59,5.36827155]
[1747187278415,72.56,183.72,183.59,228.36827155]
[1747187278614,72.56,183.72,183.6,62.0]
[1747187278919,5.443,183.72,183.66,5.4444]
[1747187279115,5.443,183.72,183.64,72.56]
[1747187279516,5.4425,183.73,183.68,5.4437]
[1747187279717,71.82,183.74,183.65,1.7366]
[1747187280018,5.4436,183.69,183.64,78.0049]
[1747187280217,5.4436,183.69,183.64,72.56]
[1747187280714,71.82,183.74,183.64,72.56]
[1747187281018,71.82,183.74,183.61,223.0]
[1747187281219,5.4437,183.69,183.63,5.4452]
[1747187281424,71.82,183.74,183.61,223.0]
[1747187281613,71.82,183.74,183.52,0.94772532]
[1747187281820,5.36827155,183.66,183.47,83.4]
[1747187282019,5.36827155,183.64,183.43,5.36827155]
[1747187282319,168.63383972,183.63,183.46,0.94815138]
[1747187282616,5.36827155,183.6,183.44,83.4]
[1747187282813,5.36827155,183.6,183.43,5.4513]
[1747187283012,0.95383972,183.59,183.43,5.4513]
[1747187283216,5.36827155,183.56,183.42,1.787]
[1747187283413,171.28833972,183.55,183.4,3.6125]
[1747187283921,5.39633045,183.52,183.38,1.8538]
[1747187284122,6.35103375,183.51,183.35,1.8177]
[1747187284318,5.39788088,183.5,183.35,1.8177]
[1747187284524,5.39873679,183.48,183.35,1.8177]
[1747187284713,2.70833972,183.47,183.35,1.8177]
[1747187285015,1.7545,183.47,183.35,1.8177]
[1747187285216,1.7545,183.47,183.36,5.4532]
[1747187285415,0.97075735,183.46,183.35,1.8177]
[1747187285828,1.7545,183.47,183.38,5.4528]
[1747187286021,8.77259989,183.53,183.35,1.8177]
[1747187286323,8.77259989,183.53,183.42,5.4516]
[1747187286324,169.99062872,183.52,183.42,5.4516]
[1747187286512,169.99062872,183.52,183.35,1.8177]
[1747187286713,0.97062872,183.51,183.35,1.8177]
[1747187287122,0.97062872,183.51,183.35,87.8177]
[1747187287325,86.97062872,183.51,183.36,62.0]
[1747187287518,1.7871,183.54,183.36,62.0]
[1747187287519,87.6,183.54,183.39,8.77259989]
[1747187287720,87.6,183.54,183.37,87.38]
[1747187287921,87.6,183.54,183.51,5.449]
[1747187288120,87.6,183.54,183.4,8.77259989]
[1747187288321,87.6,183.54,183.41,1.8511]
[1747187288525,87.6,183.54,183.41,90.0711]
[1747187289421,87.6,183.54,183.53,5.4484]
[1747187289622,87.38,183.56,183.45,87.38]
[1747187289826,8.77259989,183.64,183.45,87.38]
[1747187289827,88.1,183.59,183.56,5.4475]
[1747187290022,88.1,183.6,183.56,5.4475]
[1747187290218,88.14,183.6,183.47,8.77259989]
[1747187290424,88.14,183.6,183.47,88.2]
[1747187291525,88.14,183.6,183.47,96.97259989]
[1747187292121,88.14,183.6,183.59,5.4466]
[1747187292320,647.06,183.66,183.51,96.15259989]
[1747187292528,647.06,183.66,183.52,1.8569]
[1747187292729,647.06,183.66,183.53,88.76]
[1747187293228,176.18,183.66,183.54,1.8833]
[1747187294732,176.18,183.66,183.64,5.445]
[1747187295729,176.18,183.66,183.63,5.4454]
[1747187296131,176.18,183.66,183.54,1.8833]
[1747187296331,176.18,183.66,183.65,5.4448]
[1747187297533,176.18,183.66,183.63,5.4451]
[1747187297734,176.18,183.66,183.56,1.7557]
[1747187298028,176.18,183.66,183.65,5.4448]
[1747187299031,176.18,183.66,183.56,1.7557]
[1747187300136,176.18,183.66,183.65,5.4448]
[1747187300433,176.18,183.66,183.56,1.7557]
[1747187301128,176.18,183.66,183.65,5.4448]
[1747187301335,89.64,183.68,183.56,1.7557]
[1747187302034,89.64,183.68,183.57,8.77259989]
[1747187302236,89.64,183.68,183.65,5.4445]
[1747187302832,89.64,183.68,183.66,5.4445]
[1747187303031,89.64,183.68,183.57,96.13259989]
[1747187303234,87.36,183.69,183.57,96.13259989]
[1747187303935,87.36,183.69,183.67,5.4439]
[1747187304235,89.5,183.72,183.61,8.77259989]
[1747187304437,601.12707871,183.75,183.62,1.8091]
[1747187304637,89.32,183.77,183.65,8.77259989]
[1747187304836,176.68,183.78,183.66,3.658]
[1747187305136,176.68,183.78,183.74,5.4419]
[1747187305335,87.36,183.78,183.66,92.798]
[1747187305540,87.36,183.78,183.75,5.4416]
[1747187306534,87.36,183.78,183.76,5.4416]
[1747187306940,87.36,183.78,183.66,92.798]
[1747187307138,87.36,183.78,183.66,315.798]
[1747187307638,87.36,183.78,183.66,321.17334107]
[1747187307837,87.36,183.78,183.76,5.4414]
[1747187308135,87.36,183.78,183.66,226.658]
[1747187308340,87.36,183.78,183.63,223.0]
[1747187308543,5.4427,183.73,183.62,1.8091]
[1747187308839,92.42,183.72,183.62,1.8091]
[1747187309840,92.42,183.72,183.68,5.4436]
[1747187310644,92.42,183.72,183.62,1.8091]
[1747187310941,92.42,183.72,183.58,101.08427077]
[1747187311142,184.76,183.72,183.67,5.4442]
[1747187311341,184.76,183.72,183.58,92.34]
[1747187311845,190.2028,183.72,183.58,92.34]
[1747187312035,0.96933811,183.71,183.58,92.34]
[1747187312739,188.368,183.72,183.58,92.34]
[1747187313042,193.8108,183.72,183.66,5.4445]
[1747187314140,5.4434,183.7,183.62,5.4456]
[1747187314340,188.368,183.72,183.55,226.6156]
[1747187314341,188.368,183.72,183.55,3.6156]
[1747187314541,0.7868,183.69,183.55,3.6156]
[1747187315039,0.9695704,183.68,183.55,3.6156]
[1747187315747,90.84,183.68,183.56,8.74427077]
[1747187315944,90.84,183.68,183.63,5.4453]
[1747187316144,90.84,183.68,183.56,8.74427077]
[1747187316445,90.84,183.68,183.61,5.4457]
[1747187317040,90.84,183.68,183.62,5.4456]
[1747187317242,90.84,183.68,183.55,3.6156]
[1747187317749,90.84,183.68,183.57,8.74427077]
[1747187318245,90.26,183.7,183.58,1.8471]
[1747187319148,90.26,183.7,183.66,5.4443]
[1747187319645,90.26,183.7,183.59,92.34]
[1747187319847,90.26,183.7,183.61,8.74427077]
[1747187320348,95.7036,183.7,183.65,5.4445]
[1747187320549,95.7036,183.7,183.61,8.74427077]
[1747187320855,90.26,183.7,183.61,8.74427077]
[1747187321156,5.4437,183.69,183.61,8.74427077]
[1747187321756,90.26,183.7,183.61,8.74427077]
[1747187322350,95.948,183.72,183.61,8.74427077]
[1747187322351,92.34,183.72,183.61,8.74427077]
[1747187322546,92.34,183.77,183.65,8.74427077]
[1747187322747,3.7034,183.78,183.66,1.7809]
[1747187322953,93.3234,183.78,183.66,3.6305]
[1747187323253,0.96901708,183.77,183.74,5.4421]
[1747187323451,0.96901708,183.77,183.66,3.6305]
[1747187323648,3.7034,183.78,183.66,5.4771]
[1747187324154,89.58,183.79,183.66,5.4771]
[1747187324358,92.34,183.8,183.69,8.74427077]
[1747187324658,89.44,183.82,183.69,231.74427077]
[1747187326151,4.4893,183.84,183.81,5.4401]
[1747187326356,178.82,183.85,183.73,98.24427077]
[1747187326557,178.82,183.85,183.74,10.48677077]
[1747187326856,178.82,183.85,183.74,1.7425]
[1747187327060,5.4395,183.83,183.74,1.7425]
[1747187327357,178.82,183.85,183.74,1.7425]
[1747187328160,5.4396,183.83,183.78,5.4409]
[1747187328355,178.82,183.85,183.73,312.5]
[1747187328860,6.40808562,183.84,183.73,312.5]
[1747187329058,178.82,183.85,183.73,312.5]
[1747187329253,178.82,183.85,183.76,5.4415]
[1747187329456,178.82,183.85,183.73,312.5]
[1747187329653,0.96867944,183.84,183.73,312.5]
[1747187329850,5.4395,183.83,183.73,89.5]
[1747187331267,5.4399,183.82,183.76,5.4416]
[1747187331562,178.82,183.85,183.76,5.4416]
[1747187332061,5.4395,183.83,183.76,5.4416]
[1747187332763,178.82,183.85,183.77,5.4412]
[1747187333163,178.82,183.85,183.73,89.5]
[1747187333365,5.4398,183.83,183.76,5.4415]
[1747187333567,0.96869411,183.84,183.76,5.4415]
[1747187333870,178.82,183.85,183.76,5.4415]
[1747187334162,178.82,183.85,183.75,5.4418]
[1747187334357,0.96870545,183.84,183.68,89.46]
[1747187334763,5.4415,183.77,183.71,5.443]
[1747187334963,93.2415,183.77,183.71,5.443]
[1747187335162,87.8,183.77,183.68,89.46]
[1747187335463,87.8,183.77,183.71,5.4428]
[1747187335767,87.8,183.77,183.68,89.46]
[1747187335967,89.46,183.79,183.68,89.46]
[1747187336165,87.64,183.82,183.7,5.37505287]
[1747187337380,5.4393,183.84,183.78,5.4407]
[1747187337666,87.54,183.83,183.78,5.4407]
[1747187337863,87.54,183.83,183.79,5.4405]
[1747187338062,87.36,183.84,183.7,228.37505287]
[1747187338366,87.36,183.84,183.79,5.4405]
[1747187338562,176.64,183.85,183.7,223.0]
[1747187338762,176.64,183.85,183.71,5.37505287]
[1747187339067,176.64,183.85,183.78,5.4408]
[1747187339468,5.4397,183.83,183.78,5.4408]
[1747187339666,176.64,183.85,183.76,5.4415]
[1747187339866,176.64,183.85,183.71,5.37505287]
[1747187340064,0.96860707,183.84,183.71,5.37505287]
[1747187340264,0.96860707,183.84,183.77,5.4412]
[1747187340465,0.96860707,183.84,183.71,5.37505287]
[1747187340768,0.96860707,183.84,183.76,5.4413]
[1747187340966,5.44,183.82,183.71,5.37505287]
[1747187341464,89.46,183.85,183.71,5.37505287]
[1747187341668,176.22,183.85,183.75,5.37505287]
[1747187341865,176.22,183.85,183.76,1.8766]
[1747187342067,176.22,183.85,183.71,5.37505287]
[1747187342266,0.96862454,183.84,183.7,1.8766]
[1747187342963,0.96862454,183.84,183.68,89.46]
[1747187343572,0.96862454,183.84,183.68,94.9037]
[1747187344067,0.96862454,183.84,183.68,5.4438]
[1747187344463,5.4422,183.74,183.68,5.4438]
[1747187344663,86.7,183.75,183.66,1.8496]
[1747187345067,86.7,183.75,183.66,5.4444]
[1747187345272,88.5526,183.75,183.64,1.8766]
[1747187345472,90.3894,183.75,183.61,3.5113]
[1747187345671,5.37505287,183.73,183.57,1.7502]
[1747187346170,5.37505287,183.69,183.54,7.1829]
[1747187346372,174.5627,183.68,183.54,1.7351]
[1747187346568,175.53195133,183.68,183.54,1.7351]
[1747187346769,0.96925133,183.67,183.59,5.4465]
[1747187346965,0.96925133,183.67,183.53,6.18347593]
[1747187347167,5.4488,183.52,183.46,0.94804806]
[1747187347373,113.9888,183.52,183.43,6.33556018]
[1747187347762,108.54,183.52,183.43,6.33556018]
[1747187348770,0.97049506,183.51,183.43,6.33556018]
[1747187349475,6.41949506,183.51,183.43,6.33556018]
[1747187349676,6.41949506,183.51,183.41,5.4519]
[1747187349973,108.54,183.52,183.45,5.4507]
[1747187350373,108.54,183.52,183.42,8.76512009]
[1747187350877,111.94,183.59,183.46,8.76512009]
[1747187351070,111.98,183.6,183.47,1.79]
[1747187351266,130.29280796,183.66,183.47,1.79]
[1747187351473,224.7698968,183.65,183.48,1.8492]
[1747187351770,0.9698968,183.64,183.49,5.4493]
[1747187352173,0.9698968,183.64,183.48,1.8492]
[1747187352377,8.76512009,183.61,183.48,1.8492]
[1747187352574,0.9698968,183.6,183.48,1.8492]
[1747187352874,5.4481,183.54,183.48,1.8492]
[1747187353580,5.4484,183.53,183.44,5.451]
[1747187353780,112.02,183.55,183.43,111.84]
[1747187354187,112.02,183.55,183.41,3.5523]
[1747187354376,8.76512009,183.53,183.36,223.0]
[1747187354575,5.4508,183.45,183.36,5.4534]
[1747187354786,114.16,183.46,183.33,5.3123]
[1747187354984,114.48,183.45,183.33,5.3123]
[1747187355479,115.86,183.49,183.34,8.76512009]
[1747187355876,8.76512009,183.47,183.33,3.5355]
[1747187356080,0.9705527,183.46,183.33,3.5355]
[1747187356280,5.4516,183.43,183.33,3.5355]
[1747187356474,115.86,183.49,183.33,3.5355]
[1747187356783,0.97072461,183.48,183.33,3.5355]
[1747187357183,239.92,183.47,183.33,3.5355]
[1747187357683,239.92,183.47,183.34,5.454]
[1747187357879,0.97072461,183.46,183.33,3.5355]
[1747187358183,5.4511,183.44,183.35,5.4537]
[1747187358483,239.92,183.47,183.33,3.5355]
[1747187358684,0.97075268,183.46,183.33,3.5355]
[1747187358884,470.96,183.45,183.27,1.761]
[1747187359075,0.97075268,183.44,183.27,1.761]
[1747187359482,0.2671,183.43,183.27,1.761]
[1747187359679,5.4535,183.36,183.27,1.761]
[1747187359888,5.4535,183.36,183.26,3.6637]
[1747187359889,125.04,183.36,183.19,131.42512009]
[1747187360075,125.04,183.36,183.21,5.4734]
[1747187360676,125.04,183.36,183.26,5.4564]
[1747187360986,125.04,183.36,183.21,5.4734]
[1747187361182,125.04,183.36,183.18,223.94956137]
[1747187361377,8.76512009,183.32,183.13,1.8044]
[1747187361894,0.97160249,183.31,183.13,1.8044]
[1747187362081,132.72,183.3,183.13,1.8044]
[1747187362383,0.97160249,183.29,183.13,1.8044]
[1747187362579,136.02,183.28,183.13,1.8044]
[1747187362780,141.4759,183.28,183.19,5.4585]
[1747187362985,0.97178305,183.27,183.13,1.8044]
[1747187363186,136.02,183.28,183.13,1.8044]
[1747187363389,136.02,183.28,183.21,5.4577]
[1747187363586,136.02,183.28,183.13,1.8044]
[1747187363884,141.4758,183.28,183.13,1.8044]
[1747187364187,136.02,183.28,183.13,1.8044]
[1747187364489,8.76512009,183.25,183.09,0.94988536]
[1747187364789,0.97196169,183.24,183.07,3.669]
[1747187365288,8.76512009,183.15,182.86,471.3]
[1747187365590,11.75196169,183.14,182.87,3.5025]
[1747187365793,0.97196169,183.13,182.93,8.76512009]
[1747187365984,0.97196169,183.13,182.91,8.76512009]
[1747187366184,0.97196169,183.13,182.88,8.76512009]
[1747187366380,0.97196169,183.13,182.87,6.20100156]
[1747187366694,10.78,183.14,182.94,8.80378841]
[1747187366890,0.97267937,183.13,182.88,8.80378841]
[1747187367089,0.97267937,183.13,182.96,8.80378841]
[1747187367389,0.97267937,183.13,182.97,1.7067]
[1747187367584,10.78,183.14,182.98,3.5433]
[1747187367788,10.78,183.14,183.01,8.79774468]
[1747187367984,471.3,183.17,183.01,8.79774468]
[1747187368589,471.3,183.17,182.98,3.5433]
[1747187368788,471.3,183.17,182.98,12.34104468]
[1747187368989,471.3,183.17,183.02,5.4634]
[1747187369190,9.77019327,183.16,182.98,3.5433]
[1747187369389,8.79774468,183.12,182.98,9.0079]
[1747187369598,8.79774468,183.12,182.91,8.79774468]
[1747187369786,0.97244859,183.11,182.92,5.4292]
[1747187369994,0.97244859,183.11,182.98,8.80056002]
[1747187370186,5.46,183.14,182.98,8.80056002]
[1747187370390,0.97244859,183.16,182.98,8.80056002]
[1747187370590,8.80056002,183.16,182.92,5.4292]
[1747187370796,8.80056002,183.16,182.98,8.80056002]
[1747187371095,0.97265156,183.15,182.98,8.80056002]
[1747187371395,0.97265156,183.15,183.02,8.80056002]
[1747187371690,0.97265156,183.15,183.06,5.4622]
[1747187371891,471.3,183.17,183.03,5.2753]
[1747187372391,10.08,183.22,183.06,8.80056002]
[1747187372593,10.08,183.22,183.1,8.80056002]
[1747187372794,0.97220635,183.21,183.1,8.80056002]
[1747187372994,471.84,183.26,183.14,8.80056002]
[1747187373296,471.84,183.26,183.15,5.2753]
[1747187373495,9.62,183.31,183.15,5.2753]
[1747187373496,15.0751,183.31,183.15,5.2753]
[1747187373692,9.62,183.31,183.15,5.2753]
[1747187373994,0.97172858,183.3,183.21,5.4577]
[1747187374196,0.97172858,183.3,183.15,5.2753]
[1747187374601,5.4562,183.27,183.19,5.4584]
[1747187374799,0.97172858,183.3,183.15,5.2753]
[1747187376002,0.97172858,183.3,183.17,8.80056002]
[1747187376403,9.62,183.31,183.17,8.80056002]
[1747187377207,5.455,183.31,183.23,5.4571]
[1747187377807,9.64,183.34,183.17,8.80056002]
[1747187378009,471.84,183.35,183.21,8.80056002]
[1747187378512,9.58,183.39,183.15,14.07586002]
[1747187378513,9.58,183.39,183.25,8.80056002]
[1747187378708,89.99328282,183.42,183.26,5.5498]
[1747187379007,5.4532,183.37,183.26,5.5498]
[1747187379509,9.52,183.41,183.26,5.5498]
[1747187379811,5.4531,183.37,183.29,5.4555]
[1747187380004,0.97105318,183.4,183.26,5.5498]
[1747187380205,9.52,183.41,183.26,5.5498]
[1747187380701,5.4526,183.39,183.31,5.4549]
[1747187381007,0.97103312,183.4,183.26,5.5498]
[1747187381200,9.52,183.41,183.26,5.5498]
[1747187381399,5.4529,183.38,183.3,5.4552]
[1747187381599,9.52,183.41,183.26,5.5498]
[1747187381810,0.97109708,183.4,183.32,5.4543]
[1747187382011,0.97109708,183.4,183.28,8.80056002]
[1747187382205,0.97109708,183.41,183.26,5.5498]
[1747187383006,0.97109708,183.41,183.27,5.4559]
[1747187383206,0.97109708,183.41,183.26,5.5498]
[1747187383500,5.4531,183.38,183.28,5.4558]
[1747187383705,5.4531,183.38,183.26,5.5498]
[1747187384604,5.4522,183.41,183.26,5.5498]
[1747187384808,0.97118813,183.4,183.26,5.5498]
[1747187385005,0.97118813,183.41,183.26,5.5498]
[1747187385414,6.42338813,183.41,183.32,5.4545]
[1747187385609,0.97118813,183.4,183.27,8.80056002]
[1747187385915,471.82,183.44,183.36,5.4533]
[1747187386115,471.82,183.44,183.29,8.80056002]
[1747187386305,471.82,183.44,183.26,290.5498]
[1747187386509,471.82,183.44,183.29,8.80056002]
[1747187386709,0.97088993,183.43,183.26,228.5498]
[1747187387109,8.80056002,183.4,183.26,5.5498]
[1747187387412,1.23803734,183.39,183.26,3.6877]
[1747187387613,10.39113734,183.38,183.26,3.6877]
[1747187387810,471.82,183.44,183.26,3.6877]
[1747187388012,8.72,183.42,183.26,3.6877]
[1747187388310,5.4525,183.4,183.26,3.6877]
[1747187388506,8.72,183.42,183.26,3.6877]
[1747187388909,0.9710792,183.41,183.26,3.6877]
[1747187389108,8.78346932,183.38,183.08,482.4634]
[1747187389414,9.75491998,183.37,183.22,1.8723]
[1747187389613,1.2379792,183.36,183.16,1.8681]
[1747187389815,0.9710792,183.35,183.2,5.458]
[1747187390012,0.9710792,183.35,183.17,1.8723]
[1747187390213,8.78384078,183.33,183.17,1.8723]
[1747187390416,9.7110792,183.32,183.17,1.8723]
[1747187390716,0.9710792,183.31,183.17,1.8723]
[1747187391211,471.58,183.33,183.17,1.8723]
[1747187392012,471.58,183.33,183.2,8.78328043]
[1747187392420,5.4546,183.32,183.25,5.4564]
[1747187392718,5.4546,183.32,183.19,8.78100746]
[1747187393218,471.58,183.33,183.17,1.8723]
[1747187393416,471.58,183.33,183.17,10.65330746]
[1747187393610,5.4556,183.29,183.17,10.65503116]
[1747187393812,5.4556,183.29,183.17,1.8723]
[1747187394009,471.58,183.33,183.17,1.8723]
[1747187394212,0.97152298,183.32,183.17,1.8723]
[1747187395117,0.2687,183.31,183.17,1.8723]
[1747187395416,5.4571,183.24,183.18,5.4588]
[1747187395913,5.4579,183.22,183.17,1.8723]
[1747187396117,8.22,183.28,183.11,1.723]
[1747187396319,0.97186176,183.27,183.11,5.1754]
[1747187396516,0.97186176,183.27,183.15,5.4596]
[1747187396818,0.97186176,183.27,183.11,5.1754]
[1747187397113,0.97186176,183.27,183.11,13.96681556]
[1747187397518,5.4565,183.26,183.18,5.4585]
[1747187397721,8.22,183.28,183.11,13.96376582]
[1747187397920,8.22,183.28,183.11,5.1754]
[1747187398117,5.4567,183.25,183.16,5.4591]
[1747187398417,8.22,183.28,183.11,5.1754]
[1747187398722,0.9719259,183.27,183.11,5.1754]
[1747187398921,5.4568,183.25,183.11,5.1754]
[1747187399223,0.9719259,183.27,183.11,5.1754]
[1747187399426,0.9719259,183.24,183.11,5.1754]
[1747187399717,0.9719259,183.24,183.14,8.78836582]
[1747187399917,0.2687,183.31,183.14,8.78836582]
[1747187399918,0.9719259,183.26,183.14,8.78836582]
[1747187400120,8.4287,183.31,183.14,8.78836582]
[1747187400422,0.97170138,183.3,183.2,5.458]
[1747187400720,0.97170138,183.3,183.14,8.78836582]
[1747187401024,5.4568,183.25,183.17,5.4589]
[1747187401422,8.78836582,183.25,183.05,223.0]
[1747187401719,8.78836582,183.21,183.01,5.2034]
[1747187402020,481.08247415,183.2,183.05,5.4626]
[1747187402216,8.78836582,183.17,183.01,3.4735]
[1747187402824,0.97227415,183.16,183.01,8.9372]
[1747187403017,0.97227415,183.16,183.01,3.4735]
[1747187403315,5.4607,183.12,183.02,5.4634]
[1747187403522,0.97227415,183.11,183.02,5.4634]
[1747187403721,0.97227415,183.11,183.03,5.4632]
[1747187403921,0.97227415,183.12,183.01,3.4735]
[1747187404220,0.97227415,183.15,183.01,3.4735]
[1747187404812,5.4602,183.14,183.04,5.4627]
[1747187405016,9.76063997,183.15,183.01,3.4735]
[1747187405221,0.97227415,183.13,183.01,3.4735]
[1747187405515,0.97227415,183.14,183.01,3.4735]
[1747187405716,477.5502,183.2,183.03,8.78836582]
[1747187405910,477.5502,183.2,183.04,1.8418]
[1747187406112,471.68,183.2,183.07,8.78836582]
[1747187406311,10.9041,183.41,183.11,8.78836582]
[1747187406312,0.97231917,183.19,183.11,8.78836582]
[1747187406522,0.97231917,183.19,183.12,3.6276]
[1747187406722,5.54,183.27,183.12,3.6276]
[1747187406920,0.97192831,183.26,183.15,8.78836582]
[1747187407128,0.97192831,183.28,183.23,5.457]
[1747187407421,471.88,183.29,183.13,1.8418]
[1747187407816,0.97174075,183.28,183.13,1.8418]
[1747187408725,6.42784075,183.28,183.18,5.4588]
[1747187408922,0.97174075,183.28,183.13,1.8418]
[1747187409624,471.88,183.29,183.13,1.8418]
[1747187409823,5.4572,183.24,183.15,5.4597]
[1747187410519,471.88,183.29,183.14,8.78836582]
[1747187410915,0.9717538,183.28,183.13,1.8418]
[1747187411227,5.4564,183.26,183.13,1.8418]
[1747187411524,5.4566,183.26,183.16,5.4592]
[1747187411725,5.4566,183.26,183.13,1.8418]
[1747187411726,471.88,183.29,183.13,1.8418]
[1747187411925,0.97188897,183.25,183.13,1.8418]
[1747187412222,471.88,183.29,183.13,1.8418]
[1747187412726,0.97189063,183.28,183.13,1.8418]
[1747187413628,5.4564,183.26,183.16,5.4592]
[1747187413824,471.88,183.29,183.13,1.8418]
[1747187414123,471.88,183.29,183.22,5.4573]
[1747187414628,471.88,183.29,183.13,224.8418]
[1747187415330,6.42788108,183.28,183.19,5.4582]
[1747187415725,0.97178108,183.27,183.13,1.8418]
[1747187415927,0.97178108,183.27,183.18,5.4586]
[1747187416130,0.97178108,183.28,183.13,1.8418]
[1747187416325,471.88,183.29,183.22,5.4575]
[1747187416523,471.88,183.29,183.15,8.78836582]
[1747187418329,0.94992425,183.37,183.15,223.0]
[1747187418518,471.78,183.4,183.19,8.78836582]
[1747187418723,0.97138327,183.35,183.28,5.4556]
[1747187418928,0.97138327,183.35,183.19,231.78836582]
[1747187419231,8.78836582,183.38,183.19,223.0]
[1747187419426,0.97138327,183.34,183.19,223.0]
[1747187419623,0.97138327,183.37,183.19,223.0]
[1747187419827,0.97138327,183.33,183.19,223.0]
[1747187420127,5.457,183.24,183.16,5.4591]
[1747187420319,0.97138327,183.32,183.13,1.8418]
[1747187420520,8.78741992,183.33,183.13,1.8418]
[1747187420932,0.97175784,183.32,183.13,1.8418]
[1747187421128,0.2685,183.31,183.13,1.8418]
[1747187421430,0.97175784,183.3,183.13,1.8418]
[1747187421928,8.79287101,183.27,183.13,1.8418]
[1747187422433,0.97175784,183.26,183.12,3.6276]
[1747187422828,8.79287101,183.23,183.07,1.7656]
[1747187423229,0.97175784,183.22,183.07,1.7656]
[1747187424034,0.97175784,183.22,183.1,8.79287101]
[1747187424330,0.97175784,183.26,183.1,8.79287101]
[1747187424533,471.74,183.29,183.11,8.79287101]
[1747187424724,0.97177344,183.28,183.07,224.7656]
[1747187425232,471.74,183.29,183.12,8.79287101]
[1747187425531,471.74,183.29,183.13,3.6615]
[1747187425935,471.74,183.29,183.16,8.79287101]
[1747187426235,471.74,183.29,183.17,1.7865]
[1747187428029,471.74,183.29,183.2,5.458]
[1747187428333,471.74,183.29,183.17,1.7865]
[1747187428634,5.4562,183.27,183.17,1.7865]
[1747187428836,471.74,183.29,183.17,1.7865]
[1747187429430,5.4564,183.26,183.19,5.4584]
[1747187429734,8.79287101,183.27,183.13,3.6615]
[1747187429934,5.4581,183.21,183.12,5.4603]
[1747187430134,0.2694,183.25,183.05,8.79287101]
[1747187430533,0.2694,183.25,183.09,8.79287101]
[1747187430833,1.24136955,183.25,183.06,8.79287101]
[1747187431232,0.97196955,183.25,183.17,5.4588]
[1747187431431,0.97196955,183.25,183.11,8.79287101]
[1747187431937,0.97196955,183.25,183.12,1.7758]
[1747187432535,0.97196955,183.25,183.13,3.5557]
[1747187432732,0.97196955,183.25,183.18,5.4585]
[1747187432935,0.97196955,183.25,183.13,3.5557]
[1747187433338,0.97196955,183.25,183.15,8.79287101]
[1747187434540,0.97196955,183.25,183.2,5.4581]
[1747187434839,0.97196955,183.25,183.13,235.34857101]
[1747187435034,0.97196955,183.25,183.13,3.5557]
[1747187435635,5.4582,183.2,183.13,3.5557]
[1747187436335,0.97196955,183.25,183.13,3.5557]
[1747187436542,0.97212471,183.24,183.08,3.545]
[1747187436936,8.79287101,183.22,183.08,9.0066]
[1747187437139,0.97212471,183.21,183.08,1.8386]
[1747187437541,0.97212471,183.21,183.11,5.4608]
[1747187437735,0.97212471,183.21,183.08,1.8386]
[1747187438640,5.4582,183.21,183.08,1.8386]
[1747187438842,0.97212471,183.24,183.08,1.8386]
[1747187439241,0.97196955,183.25,183.08,1.8386]
[1747187439442,8.79287101,183.22,183.08,1.8386]
[1747187439943,0.97231032,183.21,183.08,1.8386]
[1747187440143,5.4592,183.17,183.09,5.4612]
[1747187440448,0.97231032,183.16,183.04,1.8413]
[1747187440646,5.4602,183.14,183.06,5.4623]
[1747187441151,0.97231032,183.13,183.03,1.7064]
[1747187441343,0.97231032,183.13,182.99,3.7531]
[1747187441648,8.79287101,183.1,182.94,1.7673]
[1747187441842,0.97231032,183.13,182.97,5.4648]
[1747187442045,0.97231032,183.13,182.94,1.7673]